Cogmind - Beta 13 @@@ ROGUE MODE // 2024.04.20 @ 06:53:57 Player: RKyeun Result: Self-destructed Performance ------------- Evolutions (1) 500 Regions Visited (2) 400 Robots Destroyed (13) 65 Value Destroyed (298) 298 Prototype IDs (1) 20 Alien Tech Used (0) 0 Bonus (0) 0 TOTAL SCORE: 1283 Bonus ------- None Cogmind --------- Core Integrity 293/400 Matter 290/300 Energy 59/100 System Corruption 0% Temperature Cool (0) Movement Walking (120) Location -9/Materials Parts ------- > --- POWER (1) -------- (None) > --- PROPULSION (3) --- Carbon-fiber Leg > --- UTILITY (3) ------ Improved Heat Sink ECM Suite > --- WEAPON (2) ------- (None) > --- INVENTORY (5) ---- Heat Sink Visual Processing Unit Peak State ------------ > --- POWER ------------ Light Nuclear Core > --- PROPULSION ------- Light Treads Light Treads > --- UTILITY ---------- Improved Terrain Scanner Hacking Suite > --- WEAPON ----------- Particle Gun Beam Cannon > --- INVENTORY -------- Light Ion Engine Light Treads Visual Processing Unit Sensor Array Beam Cannon [Rating: 14] Favorites ----------- Power Light Nuclear Core Engine Light Ion Engine Power Core Light Nuclear Core Propulsion Light Treads Treads Light Treads Leg Carbon-fiber Leg Flight Unit Flight Unit Utility Improved Heat Sink Device Improved Heat Sink Storage Small Storage Unit Hackware Hacking Suite Weapon Beam Cannon Energy Gun Particle Gun Energy Cannon Beam Cannon Ballistic Gun Assault Rifle Build | -11 -10 -9 ------- Run | Yrd Mat Mat Slots Evolved 2 | . . 2 Power . | . . . Propulsion 1 | . . 1 Utility 1 | . . 1 Weapon . | . . . Parts Attached 25 | 7 12 6 Power 5 | 1 2 2 Engine 3 | 1 1 1 Core 2 | . 1 1 Reactor . | . . . Propulsion 6 | 2 2 2 Treads 2 | 2 . . Leg 1 | . . 1 Wheel . | . . . Hover . | . . . Flight 3 | . 2 1 Utility 8 | 2 4 2 Device 6 | 1 3 2 Storage 1 | 1 . . Processor . | . . . Hackware 1 | . 1 . Protection . | . . . Artifact . | . . . Weapon 6 | 2 4 . Energy Gun 2 | 1 1 . Energy Cannon 3 | . 3 . Ballistic Gun 1 | 1 . . Ballistic Cannon . | . . . Launcher . | . . . Special Weapon . | . . . Impact Weapon . | . . . Slashing Weapon . | . . . Piercing Weapon . | . . . Special Melee Weapon . | . . . Unidentified Prototypes 1 | . . 1 Parts Lost 5 | . . 5 Power 1 | . . 1 Propulsion 2 | . . 2 Utility 1 | . . 1 Weapon 1 | . . 1 Highest Loss Streak 5 | . . 5 To Critical Strikes . | . . . Average Slot Usage (%) 95 | . 99 80 Engine 6 | . 7 3 Core 6 | . 6 7 Treads 21 | . 26 . Flight 6 | . 1 28 Device 23 | . 21 31 Hackware 4 | . 6 . Energy Gun 9 | . 9 9 Energy Cannon 12 | . 15 . Ballistic Gun 1 | . 1 . Naked Turns . | . . . Heaviest Build 14 | 13 14 12 Greatest Support 40 | 40 40 15 Greatest Overweight (x) 3 | 1 3 2 Average Overweight (x) . | . . . Largest Inventory Capacity 8 | 8 8 5 Average Capacity 5 | 7 5 5 Most Carried 5 | 5 5 4 Average Carried 3 | 1 4 1 Final Capacity 8 | 8 5 5 Final Carried 5 | 1 5 2 Class Distribution -------------------- 77% | Mutant 22% | Scavenger-Mutant Dominant Class ---------------- Mutant | -10/Materials Scavenger-Mutant | -9/Materials Resources | -11 -10 -9 ----------- Run | Yrd Mat Mat Matter Collected 452 | 248 154 50 Remotely . | . . . Salvage Created 446 | 18 329 99 Parts 33 | 4 24 5 Haulers Intercepted . | . . . Recyclers Shooed . | . . . Parts Field Recycled . | . . . Retrieved Matter . | . . . Parts Self-Destructed . | . . . Prevented . | . . . Kills | -11 -10 -9 ------- Run | Yrd Mat Mat Combat Hostiles Destroyed 7 | . 5 2 Guns 1 | . . 1 Cannons 5 | . 5 . Classes Destroyed 7 | 1 5 1 Tunneler 1 | 1 . . Recycler 1 | . 1 . Operator 1 | . 1 . Watcher 3 | . 3 . Swarmer 3 | . 3 . Grunt 2 | . 2 . Sentry 2 | . . 2 Best Kill Streak 4 | 1 4 1 Combat Bots Only 3 | . 3 1 Max Kills in Single Turn 1 | 1 1 1 Gunslinging . | . . . Exploded . | . . . Melee . | . . . Uniques/NPCs Destroyed . | . . . Combat | -11 -10 -9 -------- Run | Yrd Mat Mat Hostile Shots Fired 60 | . 21 39 Missed 20 | . 5 15 Damage Taken 502 | . 159 343 Core 117 | . 10 107 Absorbed by Shields . | . . . Core Remaining (%) 98 | 100 96 . Volleys Fired 40 | 1 20 19 Largest 2 | 2 2 1 Hottest 125 | 70 125 65 Shots Fired 61 | 2 40 19 Gun 38 | 2 17 19 Cannon 23 | . 23 . Launcher . | . . . Special . | . . . Kinetic 4 | 1 3 . Thermal 57 | 1 37 19 Explosive . | . . . Electromagnetic . | . . . Robot Hit Streak 8 | 1 5 8 Robot Miss Streak 3 | 1 3 2 Penetration Max . | . . . Secondary Targets . | . . . Shots Hit Robots 37 | 1 21 15 Core Hits 16 | 1 11 4 Critical Kills 1 | . 1 . Critical Parts Destroyed . | . . . Critical Strikes 4 | . 2 2 Burn 3 | . 1 2 Meltdown 1 | . 1 . Melee Attacks . | . . . Impact . | . . . Slashing . | . . . Piercing . | . . . Sneak Attacks . | . . . Combat Hostiles . | . . . Follow-up Attacks . | . . . Damage Inflicted 586 | 10 346 230 Guns 321 | 10 81 230 Cannons 265 | . 265 . Explosions . | . . . Melee . | . . . Ramming . | . . . Kinetic 37 | 10 27 . Thermal 549 | . 319 230 Explosive . | . . . Electromagnetic . | . . . Impact . | . . . Slashing . | . . . Piercing . | . . . Highest Corruption . | . . . Average Corruption . | . . . Corruption Purged . | . . . Corruption Blocked . | . . . Overload Shots . | . . . Overflow Damage 5 | . 5 . Projectiles 5 | . 5 . Explosions . | . . . Melee . | . . . Knockbacks . | . . . Impact . | . . . Kinetic . | . . . Secondary . | . . . Self-Inflicted Damage . | . . . Shots . | . . . Rammed . | . . . Targets Rammed . | . . . Kicked . | . . . Crushed . | . . . Highest Temperature 351 | 9 351 39 Average Temperature 75 | 6 101 14 Received Heat Transfer 189 | . 51 138 Siege Activations . | . . . Robots Corrupted . | . . . Combat Hostiles . | . . . Parts Fried . | . . . Impact Corruptions . | . . . Robots Melted 2 | . 1 1 Combat Hostiles 1 | . . 1 Parts Melted 8 | . 5 3 Heat Transferred 1480 | . 777 703 Parts Sabotaged . | . . . Parts Stolen . | . . . Parts Stripped . | . . . Power Chain Reactions . | . . . Alert | -11 -10 -9 ------- Run | Yrd Mat Mat Peak Influence 182 | 5 137 182 Initial 57 | . 3 57 Average 46 | . 38 96 Maximum Alert Level . | . . . Low Security (%) 100 | 100 100 100 Level 1 . | . . . Level 2 . | . . . Level 3 . | . . . Level 4 . | . . . Level 5 . | . . . High Security . | . . . Max Security . | . . . Squads Dispatched 1 | . . 1 Investigation . | . . . Extermination . | . . . Reinforcement 1 | . . 1 Assault . | . . . Garrison . | . . . Intercept . | . . . Searches Triggered . | . . . Construction Impeded . | . . . Haulers Reinforced . | . . . Active Scanning Responses . | . . . Cargo Convoy Interrupts . | . . . Stealth | -11 -10 -9 --------- Run | Yrd Mat Mat Distress Signals 1 | . 1 . Communications Jammed . | . . . Distress Signals . | . . . Times Spotted 15 | . 9 6 Peak Tracking Total 4 | . 4 3 Tactical Retreats 2 | . . 2 Traps | -11 -10 -9 ------- Run | Yrd Mat Mat Traps Triggered . | . . . Indirectly . | . . . Trap Hack Attempts . | . . . Triggered . | . . . Disarmed . | . . . Reprogrammed . | . . . Reused . | . . . Traps Extracted . | . . . Installed . | . . . Triggered . | . . . Machines | -11 -10 -9 ---------- Run | Yrd Mat Mat Machines Disabled 2 | . 2 . Max in Single Turn 1 | . 1 . Machines Repaired . | . . . Machines Dismantled . | . . . Machines Sabotaged . | . . . Overloaded Fab Kills . | . . . Hacking | -11 -10 -9 --------- Run | Yrd Mat Mat Machines Accessed 1 | . 1 . Terminals 1 | . 1 . Fabricators . | . . . Repair Stations . | . . . Recycling Units . | . . . Scanalyzers . | . . . Garrison Access . | . . . Total Hacks 5 | . 5 . Successful 1 | . 1 . Failed 4 | . 4 . Catastrophic 2 | . 2 . Database Lockouts . | . . . Manual 5 | . 5 . Terminals 5 | . 5 . Fabricators . | . . . Repair Stations . | . . . Recycling Units . | . . . Scanalyzers . | . . . Garrison Access . | . . . Terminal Hacks 1 | . 1 . Zone Layout 1 | . 1 . Fabricator Hacks . | . . . Repair Station Hacks . | . . . Recycling Unit Hacks . | . . . Scanalyzer . | . . . Garrison Access Hacks . | . . . Unauthorized Hacks . | . . . Terminals . | . . . Fabricators . | . . . Repair Stations . | . . . Recycling Units . | . . . Scanalyzers . | . . . Garrison Access . | . . . Data Cores Recovered 1 | . 1 . Used . | . . . Hacking Detections 1 | . 1 . Full Trace Events . | . . . Feedback Events . | . . . Feedback Blocked . | . . . Robot Schematics Acquired . | . . . Robots Built . | . . . Authchips . | . . . Time . | . . . Total Robot Build Rating . | . . . Part Schematics Acquired . | . . . Parts Built . | . . . Authchips . | . . . Time . | . . . Total Part Build Rating . | . . . Parts Repaired . | . . . Time . | . . . Parts Recycled . | . . . Recycled Matter . | . . . Retrieved Matter . | . . . Retrieved Components . | . . . Parts Scanalyzed . | . . . Part Schematics Acquired . | . . . Parts Damaged . | . . . Bothacking | -11 -10 -9 ------------ Run | Yrd Mat Mat Used RIF Installer . | . . . Robots Hacked . | . . . Non-combat . | . . . Combat . | . . . Robot Hacks Applied . | . . . Relay Couplers Released . | . . . Fabnet Peak Effective % . | . . . Robots Rewired . | . . . Allies Hacked . | . . . Hacks Repelled . | . . . Allies | -11 -10 -9 -------- Run | Yrd Mat Mat Total Allies . | . . . Largest Group . | . . . Highest-Rated Group . | . . . Highest-Rated Ally . | . . . Total Orders . | . . . Ally Attacks . | . . . Total Damage . | . . . Kills . | . . . Allies Corrupted . | . . . Allies Melted . | . . . Intel | -11 -10 -9 ------- Run | Yrd Mat Mat Robot Analysis Total . | . . . Derelict Logs Recovered . | . . . Drone Launches . | . . . Drone Recoveries . | . . . Exploration | -11 -10 -9 ------------- Run | Yrd Mat Mat Turns Passed 992 | 67 748 177 Spaces Moved 636 | 29 447 160 Core 3 | 2 1 . Treads 417 | 27 390 . Legs 1 | . . 1 Wheels . | . . . Hover . | . . . Flight 215 | . 56 159 Fastest Speed 34 | 50 37 34 Average Speed 118 | 154 145 38 Slowest Speed 200 | 160 200 200 Overloaded Moves . | . . . Propulsion Burnouts . | . . . Robots Hopped . | . . . Cave-ins Triggered . | . . . Exploration Rate (%) 30 | 4 68 18 Regions Visited 2 Branch Regions . Pre-discovered Areas . | . . . Known Exits Taken . | . . . Unknown Exits Taken 2 | 1 1 . Scrap Searched . | . . . Spaces Dug . | . . . Terrain Destroyed . | . . . Melee . | . . . Projectile . | . . . AOE . | . . . Terrain Rammed . | . . . Walls Destroyed . | . . . Machines Disabled . | . . . Actions | -11 -10 -9 --------- Run | Yrd Mat Mat Total 815 | 49 510 256 Wait 75 | 5 5 65 Move 634 | 28 446 160 Hop . | . . . Pick Up 21 | 8 10 3 Fast Attach 7 | . 7 . Attach 14 | 7 3 4 Detach 1 | . 1 . Swap 4 | . 2 2 Drop 19 | . 16 3 Fire 40 | 1 20 19 Melee . | . . . Ram . | . . . Kick . | . . . Crush . | . . . Escape Stasis . | . . . Rewire . | . . . Trap . | . . . Miscellaneous . | . . . Route ------- -11/Scrapyard -10/Materials (discovered 3 exits: [*Mat] / [*Min x2]) -9/Materials (discovered 1 exit: [*Sto]) History --------- Turn | Location | Event 11 | -11/Scrapyard | Discovered new exit (range 16) 68 | -11/Scrapyard | Entered Materials 118 | -10/Materials | Discovered new exit (range 8) 301 | -10/Materials | Build established: Mutant 646 | -10/Materials | Discovered new exit (range 9) 815 | -10/Materials | Discovered new exit (range 4) 816 | -10/Materials | Entered another Materials area 816 | -9/Materials | Evolved 2 slots: Propulsion x1, Utility x1 819 | -9/Materials | Discovered new exit (range 8) 993 | -9/Materials | Self-destructed Last Messages --------------- reinforcements to Terminal M009. T-07 Excavator is excavating. Critical hit (Burn: +37). Y-45 Defender suffers critical hit (Burn). Flight Unit destroyed. Y-45 Defender heat damages Lgt. Armor Plating. Y-45 Defender critical meltdown. Heat Sink melted. Beam Rifle melted. Imp. Ion Engine melted. Flight Unit destroyed. Particle Gun destroyed. R-06 Scavenger collects Lgt. Treads. Critical hit (Burn: +37). Sensor Array destroyed. Y-45 Defender heat damages Heat Sink. Y-45 Defender heat spikes uncontrollably. Lgt. Nuclear Core destroyed. Dropped Flight Unit. Acquired Carbon-fiber Leg. Map ----- +----------------------------------------------------+ | ?????????????????????????????????????????????????? | | ?????????????????????????????????????????????????? | | ?????????????????????????????????????????????????? | | ?????????????????????????????????????????????????? | | ?????????????????????????????????????????????????? | | ?????????????????????????????????????????????????? | | ?????????????????????????????????????????????????? | | ?????????????????????????????????????????????????? | | ?????????????????????????????????????????????????? | | ?????????????????????????????????????????????????? | | ?????????????????????????????????????????????????? | | ?????????????????????????????????????????????????? | | ?????????????????????????????????????????????????? | | ?????????????????????????????????? ?????????????? | | ?????????????????????????????????? "?? ?????????? | | ?????????????????????????????????" """ #???????? | | ?????????????????????????????????" """ #??????? | | ????????????????????????????????? #??????? | | ????????????????????????????????? #??????? | | ?????????????????????????????????# #??????? | | ?????????????????????????????????# ???????? | | ?????????????????????????????????# ??????### | | ?????????????????????????????????# ???????# | | ???????????????????????########??# ????????# | | ????????????????????##+#==!![[#??# #?#######?# | | ????????????????????? # @!![[#?## ### """ #?# | | ???????#?????????????# #= #?# ## "R" #?#"" | | ??????? ????????????# # ### [ ## " " #?#"T | | ????????# #???????#### ## #?#"" | | ????????# #######%## ### [% ## #?# | | ????????# + # #?# ## #?### | | ????????# # # g ###r###### #### ##### | | ????????????# # # # #######+## | | ????????????# !! #gY # """ + | | ????????????# !/ # + """ ############ | | ????????????+ !! + # """ #????????####+## | | ????????????# # # #????????# | | ????????????# # # """ #????????# """ " | | ????????????# # # """ #????????# """*" | | ????????????########## # """ #????????# """* | | ?????????????????????# # #????????# | | ?????????????????????# ### ######????????# """ | | ?????????????????????# #??##?????????????# """ | | ????????????????????? #?????????????????# """ | | ????????????????????? #?????????????????# | | ????????????????????? #?????????????????####### | | ????????????????????## ###???????????????????????? | | ?????????????????????# ??????????????????????????? | | ?????????????????????? ??????????????????????????? | | ??????????????????????#??????????????????????????? | +----------------------------------------------------+ Best States ------------- Heat Dissipation 42 Energy Generation 14 Energy Capacity 160 Matter Stores 300 Matter Capacity 300 Sight Range 16 Robot Scan Range 14 Terrain Scan Range 16 Terrain Scan Density 10 ECM Strength 1 Evasion (%) 63 Recoil Reduction 2 Offensive Hacking 10 Item Schematics ----------------- None Robot Schematics ------------------ None Fabricated ------------ Nothing Alien Tech Used ----------------- None Achievements -------------- None Challenges ------------ None Game ------ Seed HoverMetafieldReactor Manual? 0 Play Time 00:22:31 Cumulative 5.6 hours Start 2024.04.20 @ 06:28:26 End 2024.04.20 @ 06:53:57 Sessions 1 Manual Loads 0 Difficulty Rogue Special Mode None Game No. 9 Rogue 9 Adventurer 0 Explorer 0 Win Type - Total 0 Types 0/0/0/0/0/0/0/0/0 Lore% 2 Gallery% 11 Achievement% 9 Wizard Run 0 Options --------- Layout 1 ASCII 0 Keyboard 0 Movement Mouse Keybinds 0 Fullscreen 1 Font 24/Smallcaps Map View 50x35 Zoom Use 0% Tactical HUD 0 Map Filters NONE Filters NONE Steam 0 RUN: 5b5802ef-272a-47b1-a479-eb09ac321cf5